[Event "German Bundesliga 2024-25"]
[Site "Germany"]
[Date "2025.01.11"]
[Round "5.8"]
[White "Kramer, Julian"]
[Black "Albers, Sasa"]
[Result "1-0"]
[Annotator "TA"]
[ECO "B13"]
[WhiteElo "2480"]
[BlackElo "2249"]
[PlyCount "169"]
[EventDate "2024.09.27"]
[EventType "team-tourn"]
[EventCountry "GER"]
[SourceTitle "playchess.com"]
[Source "ChessBase"]
[SourceQuality "1"]
[WhiteTeam "Hamburg"]
[BlackTeam "Muelheim Nord"]
[TimeControl "40/5400+30:1800+30"]

{[%evp 10,169,13,20,25,21,33,22,25,27,22,23,28,17,27,15,27,11,16,0,30,15,52,25,43,43,48,36,57,12,32,32,43,43,44,8,10,9,16,12,57,-37,-4,-13,-7,-10,-13,0,56,58,50,52,42,64,77,62,81,60,89,110,99,-8,108,106,127,85,275,79,148,144,372,222,227,208,221,107,106,13,32,0,0,0,0,0,0,0,0,0,0,0,0,0,0,0,0,0,0,0,0,0,0,0,0,0,0,0,0,0,0,0,0,0,0,0,0,0,0,0,0,0,0,0,0,0,0,0,0,0,0,0,0,0,0,0,0,0,77,77,77,77,12787,2365,3923,320,29968,29970,29969,29971,29970,29971,29972,29971,29971,29972,29974,29975,29976,29975,29977,29978,29978,29979]} 1. e4 {[%emt 0:00:03]} c6 {[%emt 0:00:03]} 2. d4 {[%emt 0:00:08]} d5 {[%emt 0:00:04]} 3. exd5 {[%emt 0:00:05]} cxd5 {[%emt 0:00:04]} 4. Bd3 {[%emt 0:00:04]} Nc6 {[%emt 0:00:19]} 5. c3 {[%emt 0:00:07]} Qc7 {[%emt 0:00:06]} 6. h3 {[%emt 0:00:04]} e6 {[%emt 0:00:42]} 7. Nf3 {[%emt 0:00:46]} Bd6 {[%emt 0:00:08]} 8. O-O {[%emt 0:00:16]} Nge7 {[%emt 0:00:33]} 9. Re1 {[%emt 0:00:32]} O-O {[%emt 0:03:03]} 10. b3 {[%emt 0:03:51]} Rd8 {[%emt 0:03:26]} 11. Bb2 {[%emt 0:11:47]} Ng6 {[%emt 0:08:37]} 12. c4 {[%emt 0:04:39]} Nf4 {[%emt 0:13:43]} 13. c5 {[%emt 0:06:43]} Bf8 {[%emt 0:02:01]} 14. Bb5 {[%emt 0:05:35]} f6 {[%emt 0:10:58]} 15. Qd2 {[%emt 0:07:47]} Bd7 {[%emt 0:14:53]} 16. Nc3 {[%emt 0:04:12][%cal Bb1c3,Bc3b5,Bb5d4][%mdl 32]} Be8 {[%emt 0:17:29]} 17. Bf1 {[%emt 0:14:30]} Bf7 {[%emt 0:01:23]} 18. g3 {[%emt 0:03:59]} Ng6 $1 {[%emt 0:00:02]} 19. b4 {[%emt 0:04:03]} e5 {[%emt 0:04:01]} 20. Nb5 {[%emt 0:01:04]} Qb8 {[%emt 0:00:45]} 21. dxe5 {[%emt 0:00:30]} Ngxe5 {[%emt 0:01:41]} 22. Nbd4 {[%emt 0:10:21]} Nc4 {[%emt 0:04:57]} 23. Qc3 {[%emt 0:00:11]} Qc8 {[%emt 0:02:09]} 24. a3 {[%emt 0:05:59]} N6e5 {[%emt 0:02:20]} 25. Nd2 {[%emt 0:00:22]} (25. Nxe5 $1 $14 fxe5 26. Nf3 Nxb2 27. Qxb2) 25... b6 {[%emt 0:01:28]} 26. cxb6 {[%emt 0:03:01]} axb6 {[%emt 0:00:01][%cal Ob6b5]} 27. Rac1 {[%emt 0:01:07]} Qd7 {[%emt 0:00:38]} 28. f4 {[%emt 0:03:16]} Nxd2 {[%emt 0:01:44]} ({Black should try} 28... Nxb2 $11 29. fxe5 fxe5) 29. fxe5 $14 {[%emt 0:01:04]} (29. Qxd2 Nc4 30. Qf2 b5 $11 (30... Nxa3 31. Nc6 $17)) 29... fxe5 {[%emt 0:00:46]} 30. Qxd2 {[%emt 0:01:06]} exd4 {[%emt 0:00:01]} 31. Qxd4 {[%emt 0:00:18]} Qd6 {[%emt 0:02:11]} 32. Re5 {[%emt 0:00:23]} Qg6 {[%emt 0:00:21] Inhibits Rg5.} 33. Re3 {[%emt 0:01:03]} Rd6 {[%emt 0:02:29]} 34. Rc7 {[%emt 0:04:00]} Re8 {[%emt 0:02:13]} 35. Rxe8 {[%emt 0:01:48]} ({White should play} 35. Bd3 $16 Re4 36. Qe5 (36. Bxe4 dxe4 37. Qe5 Rd1+ 38. Kf2 Rd5 $11)) 35... Bxe8 {[%emt 0:00:00]} (35... Qxg3+ $11 {remains equal.} 36. Bg2 Bxe8) 36. Kh2 $16 {[%emt 0:00:22] White is much more active.} Bd7 {[%emt 0:02:02]} 37. Bg2 {[%emt 0:00:21][%cal Oa3a4]} Be6 $2 {[%emt 0:00:36]} (37... Bf5 $16) 38. Rb7 $2 {[%emt 0:01:04]} (38. b5 $18) 38... Bf7 {[%emt 0:00:28]} (38... Rc6 $142) 39. Rb8 {[%emt 0:00:57] aiming for a4.} Qf6 $2 {[%emt 0:01:01]} (39... Re6 $16 40. Qf4 (40. Qxd5 Re2 $11) 40... Re8) 40. Qxf6 {[%emt 0:01:12]} (40. a4 $142) 40... gxf6 $18 {[%emt 0:00:04]} 41. Bd4 {[%emt 0:31:40]} Rc6 {[%emt 0:04:48]} 42. Bf1 {[%emt 0:00:00]} (42. Rxb6 $18 {has better winning chances.} Rc2 43. Rxf6 (43. Bxf6 d4 $11)) 42... Bg6 $16 {[%emt 0:02:22]} 43. Bxb6 {[%emt 0:00:00]} (43. Kg1 $16) 43... Kf7 {[%emt 0:02:06]} 44. Bd4 {[%emt 0:00:00]} (44. Rxf8+ $5 Kxf8 45. Bc5+ Kf7 46. a4 $17) 44... Rc2+ {[%emt 0:02:31]} 45. Kg1 {[%emt 0:00:00]} Bd6 {[%emt 0:00:25][%csl LRb8,LRg3]} 46. Rb7+ {[%emt 0:00:00]} Kf8 {[%emt 0:07:31]} 47. Bc5 {[%emt 0:00:00]} Bxc5+ {[%emt 0:00:13]} 48. bxc5 {[%emt 0:00:00]} Rxc5 $11 {[%emt 0:00:46][%mdl 4096] Endgame KRB-KRB} 49. a4 {[%emt 0:00:00]} Ra5 {[%emt 0:02:34]} 50. Rb4 {[%emt 0:00:00]} Ke7 {[%emt 0:00:20]} 51. Kf2 {[%emt 0:00:00]} Kd6 {[%emt 0:01:51]} 52. Bb5 {[%emt 0:00:00]} Be4 {[%emt 0:07:04]} 53. Ke3 {[%emt 0:00:00]} Ke5 {[%emt 0:00:01]} 54. g4 {[%emt 0:00:00]} f5 {[%emt 0:01:10]} 55. gxf5 {[%emt 0:00:00]} Bxf5 {[%emt 0:00:02]} 56. Rh4 {[%emt 0:01:23]} Bg6 {[%emt 0:00:01]} 57. Bd3 {[%emt 0:01:40]} Ra7 {[%emt 0:01:34]} 58. Bxg6 {[%emt 0:01:21]} hxg6 {[%emt 0:00:02] KR-KR} 59. Rb4 {[%emt 0:01:32]} g5 {[%emt 0:00:57]} 60. Rg4 {[%emt 0:00:22]} Kf5 {[%emt 0:02:29]} 61. Kd2 {[%emt 0:00:51]} Rh7 {[%emt 0:01:42]} 62. Rg3 {[%emt 0:00:12]} Ke4 {[%emt 0:00:32]} 63. a5 {[%emt 0:01:10]} (63. Rxg5 Rxh3 64. Rg4+ Kf5) 63... Ra7 {[%emt 0:00:40]} 64. Ra3 {[%emt 0:00:20]} Ra6 {[%emt 0:00:45]} 65. Ra4+ {[%emt 0:00:24]} d4 {[%emt 0:00:18]} 66. Ra3 {[%emt 0:00:20]} Kd5 {[%emt 0:00:44]} 67. Rg3 {[%emt 0:01:42]} Kc4 {[%emt 0:00:30]} 68. Rxg5 {[%emt 0:00:03]} Rh6 {[%emt 0:00:23]} 69. Rg3 {[%emt 0:00:24]} Kb4 {[%emt 0:00:25]} 70. Kd3 {[%emt 0:00:13]} Kxa5 {[%emt 0:00:21]} 71. Kxd4 {[%emt 0:00:03]} Kb6 {[%emt 0:00:30]} 72. Rc3 {[%emt 0:00:09]} Re6 {[%emt 0:00:52] [#]} (72... Kb5 $11) 73. Kd5 $1 $16 {[%emt 0:00:34]} Re1 {[%emt 0:00:19]} 74. h4 {[%emt 0:00:22][%cal Bh3h4,Bh4h5,Bh5h6][%mdl 32]} Rh1 $2 {[%emt 0:00:17][%mdl 8192] Dodges Rh3} (74... Rd1+ $16 75. Ke6 Rh1) 75. Rc4 $18 {[%emt 0:00:05] White wants to mate with Kd6.} Re1 {[%emt 0:00:35]} 76. Kd6 $2 {[%emt 0:00:54]} (76. Rc6+ Kb5 77. Rf6) 76... Kb7 $2 {[%emt 0:00:48]} (76... Rh1 $18 77. Ke6 Kb5) 77. h5 {[%emt 0:00:19]} Rh1 {[%emt 0:00:05]} 78. Rc5 {[%emt 0:00:03]} Re1 {[%emt 0:00:38]} 79. Kd7 {[%emt 0:00:10]} Kb6 {[%emt 0:00:18]} 80. Rc6+ {[%emt 0:00:12]} Kb5 {[%emt 0:00:51]} 81. h6 {[%emt 0:00:04]} Re2 {[%emt 0:00:36]} 82. Rg6 {[%emt 0:01:53]} Rh2 {[%emt 0:00:19]} 83. Ke7 {[%emt 0:00:10]} Kc5 {[%emt 0:00:37]} 84. Kf7 {[%emt 0:00:08]} Kd5 {[%emt 0:00:36]} 85. Kg7 {[%emt 0:00:03]} 1-0

[Event "German Bundesliga 2024-25"]
[Site "Germany"]
[Date "2025.01.11"]
[Round "5.8"]
[White "Feuerstack, Aljoscha"]
[Black "Naumann, Alexander"]
[Result "1/2-1/2"]
[Annotator "TA"]
[ECO "C45"]
[WhiteElo "2471"]
[BlackElo "2476"]
[PlyCount "50"]
[EventDate "2024.09.27"]
[EventType "team-tourn"]
[EventCountry "GER"]
[SourceTitle "playchess.com"]
[Source "ChessBase"]
[SourceQuality "1"]
[WhiteTeam "St. Pauli"]
[BlackTeam "SG Solingen"]
[TimeControl "40/5400+30:1800+30"]

{[%evp 16,50,0,0,14,0,25,18,28,25,9,0,0,0,0,0,0,0,0,-10,-7,-12,-13,-8,-9,-13,-10,-11,-2,-6,0,0,0,0,0,0,0]} 1. e4 {[%emt 0:00:03]} e5 {[%emt 0:00:10]} 2. Nf3 {[%emt 0:00:07]} Nc6 {[%emt 0:00:11]} 3. d4 {[%emt 0:00:33]} exd4 {[%emt 0:00:07]} 4. Nxd4 {[%emt 0:00:04]} Nf6 {[%emt 0:00:53]} 5. Nxc6 {[%emt 0:00:13]} bxc6 {[%emt 0:00:06]} 6. Bd3 {[%emt 0:00:17]} d5 {[%emt 0:02:49]} 7. exd5 {[%emt 0:00:14]} cxd5 {[%emt 0:00:09]} 8. O-O {[%emt 0:00:16]} Be7 {[%emt 0:01:07]} 9. c4 {[%emt 0:00:32]} d4 {[%emt 0:11:43] Against Nc3} 10. Nd2 {[%emt 0:01:28]} Bg4 {[%emt 0:05:35]} 11. Qa4+ {[%emt 0:10:09]} Qd7 {[%emt 0:01:09]} 12. Qxd7+ {[%emt 0:09:39]} Nxd7 {[%emt 0:00:45]} 13. Re1 {[%emt 0:09:55]} Nc5 {[%emt 0:01:40] Inhibits Nb3.} 14. Bf1 {[%emt 0:06:39]} a5 {[%emt 0:30:47]} 15. Nb3 {[%emt 0:23:14]} Nxb3 {[%emt 0:04:52]} 16. axb3 {[%emt 0:00:05]} Be6 {[%emt 0:01:32]} 17. Bd2 {[%emt 0:09:20]} Kd7 $1 {[%emt 0:11:17] White should prevent ...Rhb8.} 18. Rxa5 {[%emt 0:12:57]} Rxa5 {[%emt 0:02:36]} 19. Bxa5 {[%emt 0:00:06]} Rb8 {[%emt 0:00:29]} 20. Rd1 {[%emt 0:00:47]} Rxb3 {[%emt 0:01:25][%cal Oc7c5] Hoping for ...c5!.} 21. Rxd4+ {[%emt 0:00:06]} Kc6 {[%emt 0:07:52]} 22. g3 {[%emt 0:04:45]} Rxb2 {[%emt 0:01:44]} 23. Rd1 {[%emt 0:00:20]} Bf6 {[%emt 0:03:30] Prevents Bc3.} 24. Bg2+ {[%emt 0:01:05]} Kc5 {[%emt 0:00:09]} 25. Bxc7 {[%emt 0:00:13]} Bxc4 {[%emt 0:03:23]} 1/2-1/2

[Event "German Bundesliga 2024-25"]
[Site "Germany"]
[Date "2025.01.11"]
[Round "5.8"]
[White "Gasthofer, Alexander"]
[Black "Bischoff, Klaus"]
[Result "1/2-1/2"]
[Annotator "TA"]
[ECO "A30"]
[WhiteElo "2388"]
[BlackElo "2433"]
[PlyCount "40"]
[EventDate "2024.09.27"]
[EventType "team-tourn"]
[EventCountry "GER"]
[SourceTitle "playchess.com"]
[Source "ChessBase"]
[SourceQuality "1"]
[WhiteTeam "Bad Mergentheim"]
[BlackTeam "Bayern Muenchen"]
[TimeControl "40/5400+30:1800+30"]

{[%evp 15,40,17,8,8,29,35,28,38,52,54,55,37,37,45,41,39,54,58,45,41,53,30,32,30,46,-8,0]} 1. Nf3 {[%emt 0:00:04]} Nf6 {[%emt 0:00:21]} 2. c4 {[%emt 0:00:08]} e6 {[%emt 0:01:07]} 3. g3 {[%emt 0:00:25]} b6 {[%emt 0:00:34]} 4. Bg2 {[%emt 0:00:20]} Bb7 {[%emt 0:00:13]} 5. O-O {[%emt 0:00:47]} Be7 {[%emt 0:00:25]} 6. Nc3 {[%emt 0:00:41]} c5 {[%emt 0:01:14]} 7. d4 {[%emt 0:03:43]} Ne4 {[%emt 0:00:58]} 8. Nxe4 {[%emt 0:15:21]} Bxe4 {[%emt 0:00:14]} 9. Bf4 {[%emt 0:03:52]} d6 {[%emt 0:26:02]} 10. Qd2 {[%emt 0:15:32]} a5 {[%emt 0:12:07]} 11. Rad1 {[%emt 0:06:11]} Ra6 {[%emt 0:04:25]} 12. Qe3 {[%emt 0:06:22]} Bb7 {[%emt 0:02:32]} 13. d5 {[%emt 0:19:25]} exd5 $1 {[%emt 0:01:07]} 14. cxd5 {[%emt 0:00:05]} O-O {[%emt 0:00:29]} 15. Qd3 {[%emt 0:02:42]} Ra7 {[%emt 0:03:12]} 16. Rfe1 {[%emt 0:01:13]} Nd7 {[%emt 0:04:50]} 17. e4 {[%emt 0:01:25]} Ba6 {[%emt 0:00:33]} 18. Qd2 {[%emt 0:04:16]} f6 {[%emt 0:01:07]} 19. Be3 {[%emt 0:09:59]} Bc8 {[%emt 0:04:48]} 20. h3 {[%emt 0:02:08]} (20. Nh4 $14) 20... Ne5 {[%emt 0:02:53]} 1/2-1/2

[Event "German Bundesliga 2024-25"]
[Site "Germany"]
[Date "2025.01.11"]
[Round "5.9"]
[White "Wei, Yi"]
[Black "Ivic, Velimir"]
[Result "1-0"]
[Annotator "TA"]
[ECO "C42"]
[WhiteElo "2753"]
[BlackElo "2622"]
[PlyCount "133"]
[EventDate "2024.09.27"]
[EventType "team-tourn"]
[EventCountry "GER"]
[SourceTitle "playchess.com"]
[Source "ChessBase"]
[SourceQuality "1"]
[WhiteTeam "Duesseldorf"]
[BlackTeam "Werder Bremen"]
[TimeControl "40/5400+30:1800+30"]

{[%evp 14,133,5,0,0,0,0,0,0,0,0,0,0,0,0,0,31,39,26,20,43,37,102,102,121,154,172,186,173,178,264,238,258,265,278,286,328,181,182,182,193,186,186,190,196,189,190,190,255,239,211,214,269,167,142,132,139,137,145,107,57,0,142,14,16,0,141,128,124,129,131,137,122,127,197,197,201,179,336,325,406,390,397,397,408,408,408,409,416,401,412,379,427,422,434,418,423,403,344,331,624,596,618,603,629,630,622,629,602,591,1433,1356,1231,1134,2071,1957,5316,4829,1881,1407,6703,6532]} 1. e4 {[%emt 0:00:08]} e5 {[%emt 0:00:38]} 2. Nf3 {[%emt 0:00:17]} Nf6 {[%emt 0:00:25]} 3. Nxe5 {[%emt 0:05:43]} d6 {[%emt 0:00:13]} 4. Nf3 {[%emt 0:01:48]} Nxe4 {[%emt 0:00:09]} 5. Nc3 {[%emt 0:00:30]} Nxc3 {[%emt 0:00:23]} 6. dxc3 {[%emt 0:00:06]} Be7 {[%emt 0:00:18]} 7. Bf4 {[%emt 0:02:40]} O-O {[%emt 0:02:10]} 8. Qd2 {[%emt 0:00:13]} Nd7 {[%emt 0:01:22]} 9. O-O-O {[%emt 0:00:54]} Re8 {[%emt 0:02:09]} 10. h4 {[%emt 0:22:52]} h6 {[%emt 0:04:55]} 11. g4 {[%emt 0:13:45][%cal Bg2g4,Bg4g5][%mdl 32]} Nc5 $1 {[%emt 0:04:01]} 12. g5 {[%emt 0:02:56]} Bg4 {[%emt 0:01:02]} 13. Bg2 $36 {[%emt 0:01:16][%mdl 2048] White is more active.} h5 {[%emt 0:05:23]} 14. Rde1 {[%emt 0:05:56]} Qd7 {[%emt 0:11:42]} 15. Nd4 {[%emt 0:01:26] Against Qc6} Bf8 {[%emt 0:15:27]} 16. b4 {[%emt 0:10:07]} Qa4 {[%emt 0:07:50] ( -> ...Qa3+)} 17. Kb1 {[%emt 0:00:31]} a5 {[%emt 0:12:01]} 18. bxc5 $16 {[%emt 0:10:21]} dxc5 {[%emt 0:00:14] [#]} 19. Nb3 $1 {[%emt 0:04:33]} Rad8 {[%emt 0:17:40] [#]} 20. Qc1 $1 {[%emt 0:00:13]} (20. Bd5 Be6 (20... Rxd5 $2 21. Qxd5 Be6 22. Rxe6 $18) 21. c4 c6 $19) 20... c4 {[%emt 0:05:43]} 21. Bxc7 {[%emt 0:00:12]} cxb3 {[%emt 0:02:49]} (21... Rc8 $142) 22. axb3 $18 {[%emt 0:04:27]} (22. Bxb7 $2 Qxa2#) 22... Qb5 {[%emt 0:00:33]} (22... Rxe1 23. Rxe1 (23. bxa4 Rxc1+ 24. Rxc1 Re8 $16) 23... Qd7 24. Bxd8 Qxd8 25. Qf4 $18 (25. Bxb7 a4 $18)) 23. Bxd8 {[%emt 0:01:42]} Rxd8 {[%emt 0:00:05]} 24. Qf4 {[%emt 0:00:47]} Bd6 {[%emt 0:01:04]} 25. Qc4 {[%emt 0:01:20]} (25. Qe4 $142) 25... Qxc4 {[%emt 0:01:20]} 26. bxc4 {[%emt 0:00:05]} Bc5 {[%emt 0:00:42]} 27. Bd5 {[%emt 0:00:20]} (27. Bxb7 Rb8 (27... Bxf2 $2 28. Re5 $18) 28. Ka2 Rxb7 $19) 27... Kf8 {[%emt 0:00:50]} 28. f3 {[%emt 0:01:34]} (28. Bxb7 $2 Rb8 (28... Bxf2 $2 29. Re5 $18) 29. Ka1 Rxb7 $19) 28... Bc8 {[%emt 0:01:36]} 29. Rd1 {[%emt 0:04:56]} g6 {[%emt 0:01:37]} 30. Ka2 {[%emt 0:03:11]} b6 {[%emt 0:00:16]} (30... Kg7 $142 31. Kb2 Rh8) 31. Bc6 {[%emt 0:00:33]} Rxd1 {[%emt 0:00:31]} 32. Rxd1 {[%emt 0:00:02][%mdl 4096] Endgame KRB-KB} Be6 {[%emt 0:00:44]} 33. Kb3 {[%emt 0:01:04]} Bf2 {[%emt 0:00:32]} 34. Bd5 {[%emt 0:00:30]} Bf5 {[%emt 0:00:26]} 35. Rh1 {[%emt 0:00:21]} Ke7 {[%emt 0:00:36]} 36. Rh2 {[%emt 0:00:39]} Bg3 {[%emt 0:00:22]} 37. Rh1 {[%emt 0:00:19]} ({White should try} 37. Re2+ $14 Kf8 38. Be4) 37... Bf2 $1 $16 {[%emt 0:00:34] This pair of bishops is nice.} 38. Bc6 {[%emt 0:00:41]} (38. Be4 $16 {And now Bxf5 would win.} Bd7 39. Kb2) 38... Kd6 $1 $11 {[%emt 0:00:23]} 39. Bb7 {[%emt 0:00:30]} Ke7 {[%emt 0:00:43]} (39... Ke5 $1 $11) 40. Bd5 {[%emt 0:00:29]} Bd7 {[%emt 0:00:28]} 41. Rh2 {[%emt 0:06:47]} Bg3 {[%emt 0:14:13]} 42. Re2+ {[%emt 0:00:22]} Kf8 {[%emt 0:00:04]} 43. Re4 {[%emt 0:00:24]} Bd6 {[%emt 0:06:00]} (43... Bf2 $16 44. Rf4 Bf5) 44. Rd4 $18 {[%emt 0:03:44][%cal Od5f7]} Bc5 {[%emt 0:00:50]} 45. Rd2 {[%emt 0:00:42][%cal Od5f7]} Bh3 $2 {[%emt 0:07:41]} (45... Be3 {keeps fighting.} 46. Rd1 Bf2 47. Bxf7 Bf5) 46. Bc6 {[%emt 0:01:07]} f6 {[%emt 0:03:24]} 47. f4 {[%emt 0:03:06]} ({Don't do} 47. gxf6 Kf7 48. Rh2 Bf5 $18) 47... Bf5 {[%emt 0:01:05]} 48. Bd7 {[%emt 0:00:43]} (48. gxf6 Kf7 49. Rg2 Be3 $11) 48... Be4 {[%emt 0:00:36]} 49. Be6 {[%emt 0:00:53]} ({Less strong is} 49. gxf6 Kf7 50. Re2 Bf3 $18) 49... fxg5 {[%emt 0:00:37]} 50. fxg5 {[%emt 0:00:31]} (50. hxg5 Ke7 51. Bd5 Bf5 52. Re2+ Kf8 $16) 50... Bc6 {[%emt 0:00:32]} 51. Bd7 {[%emt 0:00:50]} Bf3 {[%emt 0:00:28]} 52. Ka4 {[%emt 0:00:37]} Ke7 {[%emt 0:00:23]} 53. Kb5 {[%emt 0:00:05]} Bb7 {[%emt 0:00:39]} 54. Bh3 {[%emt 0:02:13]} Bf3 {[%emt 0:00:27]} 55. Rd7+ {[%emt 0:02:40]} Kf8 {[%emt 0:00:17]} 56. Be6 {[%emt 0:01:01]} Be4 $2 {[%emt 0:00:47]} (56... Bg4 57. Rf7+ (57. Bxg4 hxg4 58. Rd3 Bf2 $11) 57... Ke8) 57. Rf7+ {[%emt 0:00:20]} Ke8 {[%emt 0:00:08]} 58. Rf6 {[%emt 0:00:22]} Ke7 {[%emt 0:00:51]} 59. Bf7 {[%emt 0:00:11]} Bf5 {[%emt 0:00:30]} 60. Bxg6 {[%emt 0:01:05]} Bd7+ {[%emt 0:00:12]} 61. Ka6 {[%emt 0:00:06]} a4 {[%emt 0:00:47][%cal Ba5a4,Ba4a3,Ba3a2][%mdl 32]} 62. Bf5 {[%emt 0:01:05] Inhibits Be6.} Be8 {[%emt 0:00:24]} 63. Re6+ {[%emt 0:00:14]} Kf8 {[%emt 0:00:14]} 64. g6 {[%emt 0:00:15][%cal Og6g7]} a3 {[%emt 0:00:52] [#]} 65. g7+ $1 {[%emt 0:00:05]} Kxg7 {[%emt 0:00:03]} 66. Rxe8 {[%emt 0:00:06]} a2 {[%emt 0:00:03]} 67. Re1 {[%emt 0:00:06]} 1-0

[Event "German Bundesliga 2024-25"]
[Site "Germany"]
[Date "2025.01.11"]
[Round "5.9"]
[White "Narayanan S L"]
[Black "Bartel, Mateusz"]
[Result "1/2-1/2"]
[Annotator "TA"]
[ECO "D02"]
[WhiteElo "2638"]
[BlackElo "2613"]
[PlyCount "123"]
[EventDate "2024.09.27"]
[EventType "team-tourn"]
[EventCountry "GER"]
[SourceTitle "playchess.com"]
[Source "ChessBase"]
[SourceQuality "1"]
[WhiteTeam "Deggendorf"]
[BlackTeam "TU Dresden"]
[TimeControl "40/5400+30:1800+30"]

{[%evp 88,123,164,165,160,140,212,64,60,49,165,0,0,-201,0,0,296,108,79,68,68,0,455,435,762,823,763,370,316,0,0,0,0,0,0,0,0,0]} 1. Nf3 {[%emt 0:00:05]} d5 {[%emt 0:00:24]} 2. g3 {[%emt 0:00:08]} Nd7 {[%emt 0:02:39]} 3. d4 {[%emt 0:00:11]} Nb6 {[%emt 0:00:05]} 4. b3 {[%emt 0:00:18]} Bf5 {[%emt 0:03:18]} 5. a4 {[%emt 0:08:56]} a5 {[%emt 0:00:30]} 6. Ba3 {[%emt 0:00:23]} g6 {[%emt 0:18:01]} 7. Bg2 {[%emt 0:00:21]} Bg7 {[%emt 0:00:05]} 8. O-O {[%emt 0:05:01]} Nf6 {[%emt 0:02:21]} 9. e3 {[%emt 0:04:36]} O-O {[%emt 0:01:19]} 10. Nbd2 {[%emt 0:00:31]} Ne4 {[%emt 0:06:25]} 11. Nh4 {[%emt 0:13:53]} Bg4 {[%emt 0:07:35]} 12. Qxg4 {[%emt 0:02:34]} Nxd2 {[%emt 0:00:14]} 13. Rfc1 {[%emt 0:02:23]} Re8 {[%emt 0:02:13]} 14. Qd1 {[%emt 0:17:13]} Ne4 {[%emt 0:00:54]} 15. Nf3 {[%emt 0:01:23]} e6 {[%emt 0:16:31]} 16. c4 {[%emt 0:00:53]} c6 {[%emt 0:00:04]} 17. Qc2 {[%emt 0:06:30]} f5 {[%emt 0:03:12]} 18. Ne5 {[%emt 0:05:15]} Nd7 {[%emt 0:01:23]} 19. Nd3 {[%emt 0:02:27]} Rc8 {[%emt 0:06:23]} 20. Bb2 {[%emt 0:03:51]} Qb6 {[%emt 0:06:27]} 21. Rab1 {[%emt 0:04:58]} Bf8 {[%emt 0:02:00]} 22. f3 {[%emt 0:02:08]} Nef6 {[%emt 0:00:02]} 23. Bc3 {[%emt 0:00:25]} Qd8 {[%emt 0:02:01]} 24. Qd2 {[%emt 0:01:45]} Ra8 {[%emt 0:00:46]} 25. Re1 {[%emt 0:00:22]} Bh6 {[%emt 0:02:41]} 26. Qe2 {[%emt 0:02:08]} Qe7 {[%emt 0:01:41]} 27. Kh1 {[%emt 0:02:14]} Bg7 {[%emt 0:00:20]} 28. Qd2 {[%emt 0:02:29]} Qd8 {[%emt 0:00:56]} 29. Qa2 {[%emt 0:03:47]} Kh8 {[%emt 0:00:38]} 30. Re2 {[%emt 0:01:48]} Qc7 {[%emt 0:00:33]} 31. Rbe1 {[%emt 0:00:37]} b5 {[%emt 0:01:32]} 32. cxb5 {[%emt 0:01:33]} cxb5 {[%emt 0:00:02]} 33. Rc1 {[%emt 0:00:26]} Qb8 {[%emt 0:00:33]} 34. Rec2 {[%emt 0:00:13]} Rc8 {[%emt 0:00:04]} 35. axb5 {[%emt 0:00:41]} Qxb5 {[%emt 0:00:08]} 36. Bf1 {[%emt 0:00:04]} Qb6 {[%emt 0:00:57]} 37. Bd2 {[%emt 0:01:45]} Rxc2 {[%emt 0:01:19]} 38. Rxc2 {[%emt 0:00:05]} g5 {[%emt 0:01:37]} 39. Qa4 {[%emt 0:00:47]} g4 {[%emt 0:01:16]} 40. fxg4 {[%emt 0:00:24]} fxg4 {[%emt 0:00:05]} 41. b4 {[%emt 0:31:57]} Qb7 {[%emt 0:30:51]} 42. bxa5 {[%emt 0:00:54]} Ne4 {[%emt 0:00:01]} 43. Be1 {[%emt 0:00:00]} Bh6 {[%emt 0:00:00]} 44. Be2 {[%emt 0:00:00]} Bxe3 {[%emt 0:00:00]} 45. Bxg4 {[%emt 0:00:00]} Ndf6 {[%emt 0:00:00]} 46. Bf3 {[%emt 0:00:00]} (46. Bxe6 $6 Qb1 $14) 46... Qa7 {[%emt 0:00:00] [#]} (46... Qb1 $16) 47. Nc5 {[%emt 0:00:00]} (47. Qc6 $1 $18 {[%mdl 512]}) 47... Qf7 $1 $14 {[%emt 0:00:00]} 48. Qc6 {[%emt 0:00:00]} Rb8 {[%emt 0:00:00]} (48... Re8 $1 $14) 49. Kg2 $2 {[%emt 0:00:00]} (49. Qxe6 Rb1 50. Re2 (50. Qxf7 $2 Rxe1+ 51. Kg2 Rg1+ 52. Kh3 Ng5+ 53. Kh4 Nxf3+ 54. Kh3 Ng5+ 55. Kh4 Nxf7 $19) 50... Qxe6 51. Nxe6 Bd2 $16) ({Better is} 49. Nxe6 $18 {Black must now prevent a6.} Rb1 50. Re2) 49... Ng5 $1 $11 {[%emt 0:00:00]} 50. Be2 $2 {[%emt 0:00:00]} (50. Bd1 $11 {and White is okay.} Rb1 51. Nxe6 Nxe6 (51... Qxe6 $2 52. Qxe6 Nxe6 53. a6 $19) 52. Re2) 50... Rb1 $2 {[%emt 0:00:00]} (50... Qg6 $1 $19 {[%cal Rg6c2]} 51. Qd6 (51. Nxe6 $2 Qe4+ 52. Kf1 Qh1#) 51... Rg8) 51. Nd3 $1 $11 {[%emt 0:01:23]} Bxd4 $2 {[%emt 0:00:00][%mdl 8192]} (51... Qg6 $1 $11 52. h4 Qe4+ 53. Kh2 Nh3 54. Qc8+ (54. Kxh3 $2 Qh1#) 54... Ng8 55. Kxh3 Qh1+ 56. Kg4 h5+ 57. Kxh5 Qe4) 52. h4 $2 {[%emt 0:01:54]} (52. Bf2 $18 Bxf2 53. Nxf2) 52... Nge4 $16 {[%emt 0:00:00]} 53. Qc8+ {[%emt 0:00:23]} Ng8 {[%emt 0:00:00]} 54. Bg4 {[%emt 0:00:07]} (54. Qc7 $14 Qxc7 55. Rxc7) 54... Nc5 $2 {[%emt 0:05:33][%mdl 8192] [#]} (54... Nxg3 $1 $11 {and Black is okay.} 55. Bf2 (55. Kxg3 Qf1 $19) 55... Nf5 (55... Bxf2 56. Rxf2 Qg7 57. Qxe6 $11) 56. Bxf5 Qg7+ 57. Kf3 exf5 58. Qxf5 Bxf2 59. Rxf2 Ra1) 55. Bf2 $1 $18 {[%emt 0:03:44]} (55. Nxc5 $2 Rxe1 56. Qa6 Qg6 $19 (56... Qc7 57. Qd3 $17)) 55... Nxd3 {[%emt 0:01:59]} (55... Bxf2 $142 56. Nxf2 (56. Rxf2 Qg6 $18) 56... Ne4 57. Bxe6 (57. Qxe6 Qxe6 58. Bxe6 Nef6 $18) 57... Qg6) 56. Bxd4+ $18 {[%emt 0:00:36]} (56. Bxe6 Nf4+ 57. gxf4 Qg6+ 58. Bg4 Bxf2 59. Kxf2 (59. Rxf2 h5 $17) 59... Qe4 $11) 56... e5 {[%emt 0:00:05]} 57. Bf2 {[%emt 0:01:49]} ({Weaker is} 57. Rf2 Qg7 58. Qf5 (58. Bf5 Rb3 $17) 58... Rb3 $14 (58... exd4 $2 {loses.} 59. Qxd3 Re1 60. Bf3 $18) (58... Nxf2 $2 59. Bxe5 Ne4 60. Bxg7+ Kxg7 61. Qe5+ Ngf6 62. a6 $18)) (57. Bf5 $142 {White threatens Rc7 and mate.} exd4 58. Bxd3) 57... Rc1 $18 {[%emt 0:04:36] [#]} 58. Bf3 $2 {[%emt 0:00:10]} (58. a6 h5 59. Bf3 (59. a7 hxg4 60. Rxc1 Qxf2+ 61. Kh1 Qf3+ 62. Kh2 Nxc1 $19) 59... Nf4+ 60. Kh2 Nd3 61. Rxc1 Qxf3 $11) (58. h5 $1 $18) 58... Nf4+ $1 $11 {[%emt 0:01:03]} 59. Kh2 $1 {[%emt 0:00:06]} Nd3 $1 {[%emt 0:01:10]} 60. Kg2 {[%emt 0:00:05]} Nf4+ $1 {[%emt 0:00:02]} 61. Kh2 {[%emt 0:00:16]} Nd3 $1 {[%emt 0:00:02]} 62. Kg2 {[%emt 0:01:45]} 1/2-1/2